lending/lending_fUSD_20240110
["ID","MTS","AMOUNT","RATE_DAILY","PERIOD"]
[311018754,1704870683887,-500.0,0.00030684,2]
[311018755,1704870683896,-500.0,0.00030684,2]
[311018756,1704870683904,-500.0,0.00030684,2]
[311018757,1704870683913,-1328.2,0.00030684,2]
[311018758,1704870683923,-950.34,0.00030684,2]
[311018759,1704870683932,-500.0,0.00030684,2]
[311018760,1704870683941,-3341.38,0.00030684,2]
[311018761,1704870683950,-500.0,0.00030684,2]
[311018762,1704870683959,-199.1582672,0.00030684,2]
[311018763,1704870683968,-670.2,0.00030684,2]
[311018764,1704870683977,-2540.16,0.00030684,2]
[311018765,1704870683986,-1367.73,0.00030684,2]
[311018766,1704870683995,-500.0,0.00030684,2]
[311018767,1704870684004,-500.0,0.00030684,2]
[311018768,1704870684014,-500.0,0.00030684,2]
[311018769,1704870684024,-1727.65,0.00030684,2]
[311018770,1704870684034,-1312.94,0.00030684,2]
[311018771,1704870684044,-500.0,0.00030684,2]
[311018772,1704870684053,-500.0,0.00030684,2]
[311018773,1704870684063,-4324.61,0.00030684,2]
[311018774,1704870684073,-500.0,0.00030684,2]
[311018775,1704870684082,-1000.0,0.00030684,2]
[311018776,1704870684091,-500.0,0.00030684,2]
[311018777,1704870684101,-653.12,0.00030684,2]
[311018778,1704870684110,-500.0,0.00030684,2]
[311018779,1704870684119,-814.4,0.00030684,2]
[311018780,1704870684128,-500.0,0.00030684,2]
[311018781,1704870684138,-500.0,0.00030684,2]
[311018782,1704870684147,-2136.39,0.00030684,2]
[311018783,1704870684156,-500.0,0.00030684,2]
[311018784,1704870684165,-1023.93,0.00030684,2]
[311018785,1704870684175,-1839.58,0.00030684,2]
[311018786,1704870684183,-500.0,0.00030684,2]
[311018787,1704870684193,-500.0,0.00030684,2]
[311018788,1704870684202,-500.0,0.00030684,2]
[311018789,1704870684213,-444.28,0.00030684,2]
[311018790,1704870684222,-795.14,0.00030684,2]
[311018791,1704870684232,-500.0,0.00030684,2]
[311018792,1704870684241,-765.15,0.00030684,2]
[311018793,1704870684250,-680.64,0.00030684,2]
[311018794,1704870684260,-500.0,0.00030684,2]
[311018795,1704870684269,-3808.16,0.00030684,2]
[311018796,1704870684278,-500.0,0.00030684,2]
[311018797,1704870684287,-500.0,0.00030684,2]
[311018798,1704870684296,-1091.93,0.00030684,2]
[311018799,1704870684305,-500.0,0.00030684,2]
[311018800,1704870684314,-500.0,0.00030684,2]
[311018801,1704870684323,-1386.71,0.00030684,2]
[311018802,1704870684333,-500.0,0.00030684,2]
[311018803,1704870684343,-1315.78,0.00030684,2]
[311018804,1704870684353,-850.57,0.00030684,2]
[311018805,1704870684362,-959.44,0.00030684,2]
[311018806,1704870684371,-1188.47,0.00030684,2]
[311018807,1704870684380,-867.87,0.00030684,2]
[311018808,1704870684389,-5607.81,0.00030684,2]
[311018809,1704870684398,-500.0,0.00030684,2]
[311018810,1704870684408,-500.0,0.00030684,2]
[311018811,1704870684417,-379.7,0.00030684,2]
[311018812,1704870684427,-500.0,0.00030684,2]
[311018813,1704870684436,-500.0,0.00030684,2]
[311018814,1704870684445,-1392.89,0.00030684,2]
[311018815,1704870684454,-2379.77,0.00030684,2]
[311018816,1704870684464,-1956.34,0.00030684,2]
[311018817,1704870684479,-2165.74,0.00030684,2]
[311018818,1704870684488,-500.0,0.00030684,2]
[311018819,1704870684497,-500.0,0.00030684,2]
[311018820,1704870684506,-500.0,0.00030684,2]
[311018821,1704870684516,-2685.4,0.00030684,2]
[311018822,1704870684525,-511.72878666,0.00030684,2]
[311018823,1704870684534,-1510.84,0.00030684,2]
[311018824,1704870684543,-1438.74,0.00030684,2]
[311018825,1704870684553,-500.0,0.00030684,2]
[311018826,1704870684562,-2761.15,0.00030684,2]
[311018827,1704870684571,-700.83,0.00030684,2]
[311018828,1704870684580,-500.0,0.00030684,2]
[311018829,1704870684589,-1552.71,0.00030684,2]
[311018830,1704870684599,-500.0,0.00030684,2]
[311018831,1704870684608,-3142.76,0.00030684,2]
[311018832,1704870684618,-559.03,0.00030684,2]
[311018833,1704870684628,-1261.25,0.00030684,2]
[311018834,1704870684638,-500.0,0.00030684,2]
[311018835,1704870684647,-500.0,0.00030684,2]
[311018836,1704870684657,-500.0,0.00030684,2]
[311018837,1704870684666,-834.98,0.00030684,2]
[311018838,1704870684675,-1656.83,0.00030684,2]
[311018839,1704870684684,-731.0,0.00030684,2]
[311018840,1704870684693,-1804.62,0.00030684,2]
[311018841,1704870684702,-500.0,0.00030684,2]
[311018842,1704870684711,-1849.98,0.00030684,2]
[311018843,1704870684720,-891.94,0.00030684,2]
[311018844,1704870684729,-500.0,0.00030684,2]
[311018845,1704870684738,-1466.49,0.00030684,2]
[311018846,1704870684747,-627.27,0.00030684,2]
[311018847,1704870684757,-1328.67,0.00030684,2]
[311018848,1704870684766,-2208.94,0.00030684,2]
[311018849,1704870684774,-564.95610559,0.00030684,2]
[311018850,1704870684784,-797.89,0.00030684,2]
[311018851,1704870684793,-643.16571664,0.00030684,2]
[311018852,1704870684802,-500.0,0.00030684,2]
[311018853,1704870684811,-500.0,0.00030684,2]
[311018854,1704870684820,-500.0,0.00030684,2]
[311018855,1704870684829,-1744.68,0.00030684,2]
[311018856,1704870684840,-500.0,0.00030684,2]
[311018857,1704870684849,-4646.55,0.00030684,2]
[311018858,1704870684858,-13405.24,0.00030684,2]
[311018859,1704870684867,-500.0,0.00030684,2]
[311018860,1704870684876,-500.0,0.00030684,2]
[311018861,1704870684885,-500.0,0.00030684,2]
[311018862,1704870684894,-500.0,0.00030684,2]
[311018863,1704870684904,-1204.78,0.00030684,2]
[311018864,1704870684913,-2097.86,0.00030684,2]
[311018865,1704870684922,-600.13,0.00030684,2]
[311018866,1704870684931,-500.0,0.00030684,2]
[311018867,1704870684941,-1042.6,0.00030684,2]
[311018868,1704870684950,-756.26,0.00030684,2]
[311018869,1704870684959,-586.64,0.00030684,2]
[311018870,1704870684968,-500.0,0.00030684,2]
[311018871,1704870684978,-500.0,0.00030684,2]
[311018872,1704870684987,-516.49,0.00030684,2]
[311018873,1704870684996,-987.15,0.00030684,2]
[311018874,1704870685006,-582.11,0.00030684,2]
[311018875,1704870685015,-500.0,0.00030684,2]
[311018876,1704870685024,-3994.62,0.00030684,2]
[311018877,1704870685034,-500.0,0.00030684,2]
[311018878,1704870685042,-2359.56,0.00030684,2]
[311018879,1704870685052,-500.0,0.00030684,2]
[311018880,1704870685060,-2376.3,0.00030684,2]
[311018881,1704870685069,-500.0,0.00030684,2]
[311018882,1704870685079,-500.0,0.00030684,2]
[311018883,1704870685088,-7174.33,0.00030684,2]
[311018884,1704870685097,-500.0,0.00030684,2]
[311018885,1704870685106,-500.0,0.00030684,2]
[311018886,1704870685115,-500.0,0.00030684,2]
[311018887,1704870685125,-2118.14,0.00030684,2]
[311018888,1704870685134,-289.11740338,0.00030684,2]
[311018889,1704870685143,-1599.81,0.00030684,2]
[311018890,1704870685152,-5024.81,0.00030684,2]
[311018891,1704870685161,-500.0,0.00030684,2]
[311018892,1704870685170,-2088.36,0.00030684,2]
[311018893,1704870685180,-1828.24,0.00030684,2]
[311018894,1704870685189,-500.0,0.00030684,2]
[311018895,1704870685198,-8082.26,0.00030684,2]
[311018896,1704870685207,-2044.06,0.00030684,2]
[311018897,1704870685216,-500.0,0.00030684,2]
[311018898,1704870685226,-541.83,0.00030684,2]
[311018899,1704870685234,-500.0,0.00030684,2]
[311018900,1704870685243,-1104.36,0.00030684,2]
[311018901,1704870685252,-4065.29,0.00030684,2]
[311018902,1704870685262,-1147.27,0.00030684,2]
[311018903,1704870685271,-3383.4,0.00030684,2]
[311018904,1704870685280,-22040.22,0.00030684,2]
[311018905,1704870685289,-515.05,0.00030684,2]
[311018906,1704870685298,-500.0,0.00030684,2]
[311018907,1704870685307,-2213.33,0.00030684,2]
[311018908,1704870685316,-2343.33,0.00030684,2]
[311018909,1704870685325,-500.0,0.00030684,2]
[311018910,1704870685335,-8135.87,0.00030684,2]
[311018911,1704870685347,-500.0,0.00030684,2]
[311018912,1704870685355,-1759.41,0.00030684,2]
[311018913,1704870685365,-500.0,0.00030684,2]
[311018914,1704870685374,-500.0,0.00030684,2]
[311018915,1704870685383,-503.91,0.00030684,2]
[311018916,1704870685392,-500.0,0.00030684,2]
[311018917,1704870685401,-705.23,0.00030684,2]
[311018918,1704870685411,-568.42,0.00030684,2]
[311018919,1704870685421,-500.0,0.00030684,2]
[311018920,1704870685431,-500.0,0.00030684,2]
[311018921,1704870685442,-1047.2,0.00030684,2]
[311018922,1704870685451,-500.0,0.00030684,2]
[311018923,1704870685460,-1996.32,0.00030684,2]
[311018924,1704870685469,-500.0,0.00030684,2]
[311018925,1704870685479,-1414.57,0.00030684,2]
[311018926,1704870685488,-17575.17,0.00030684,2]
[311018927,1704870685497,-757.58,0.00030684,2]
[311018928,1704870685506,-500.0,0.00030684,2]
[311018929,1704870685515,-5204.9,0.00030684,2]
[311018930,1704870685524,-500.0,0.00030684,2]
[311018931,1704870685534,-7005.81,0.00030684,2]
[311018932,1704870685543,-713.47,0.00030684,2]
[311018933,1704870685552,-906.38,0.00030684,2]
[311018934,1704870685561,-4425.89,0.00030684,2]
[311018935,1704870685570,-1690.93,0.00030684,2]
[311018936,1704870685580,-859.95,0.00030684,2]
[311018937,1704870685589,-500.0,0.00030684,2]
[311018938,1704870685599,-500.0,0.00030684,2]
[311018939,1704870685611,-500.0,0.00030684,2]
[311018940,1704870685621,-589.1,0.00030684,2]
[311018941,1704870685630,-172.99473723,0.00030684,2]
[311018942,1704870685643,-643.92,0.00030684,2]
[311018943,1704870685652,-980.58,0.00030684,2]
[311018944,1704870685661,-8374.45,0.00030684,2]
[311018945,1704870685671,-1353.96,0.00030684,2]
[311018946,1704870685680,-430.30517804,0.00030684,2]
[311018947,1704870685689,-500.0,0.00030684,2]
[311018948,1704870685698,-500.0,0.00030684,2]
[311018949,1704870685707,-12913.78,0.00030684,2]
[311018950,1704870685716,-500.0,0.00030684,2]
[311018951,1704870685725,-500.0,0.00030684,2]
[311018952,1704870685734,-1833.05,0.00030684,2]
[311018953,1704870685751,-502.26017071,0.00030684,2]
[311018954,1704870685764,-662.43,0.00030684,2]
[311018955,1704870685773,-917.99,0.00030684,2]
[311018956,1704870685782,-500.0,0.00030684,2]
[311018957,1704870685791,-500.0,0.00030684,2]
[311018958,1704870685800,-500.0,0.00030684,2]
[311018959,1704870685810,-544.98,0.00030684,2]
[311018960,1704870685819,-500.0,0.00030684,2]
[311018961,1704870685829,-226.78317548,0.00030684,2]
[311018962,1704870685838,-1893.17,0.00030684,2]
[311018963,1704870685848,-708.88,0.00030684,2]
[311018964,1704870685857,-57080.54,0.00030684,2]
[311018965,1704870685866,-1238.96,0.00030684,2]
[311018966,1704870685875,-638.04,0.00030684,2]
[311018967,1704870685885,-6998.79,0.00030684,2]
[311018968,1704870685894,-1579.69,0.00030684,2]
[311018969,1704870685903,-4494.36,0.00030684,2]
[311018970,1704870685913,-1515.42,0.00030684,2]
[311018971,1704870685922,-500.0,0.00030684,2]
[311018972,1704870685932,-602.87,0.00030684,2]
[311018973,1704870685941,-500.0,0.00030684,2]
[311018974,1704870685951,-999.07,0.00030684,2]
[311018975,1704870685960,-11764.06,0.00030684,2]
[311018976,1704870685969,-500.0,0.00030684,2]
[311018977,1704870685978,-500.0,0.00030684,2]
[311018978,1704870685987,-646.4,0.00030684,2]
[311018979,1704870685997,-1157.8,0.00030684,2]
[311018980,1704870686006,-500.0,0.00030684,2]
[311018981,1704870686016,-1023.23,0.00030684,2]
[311018982,1704870686025,-500.0,0.00030684,2]
[311018983,1704870686035,-500.0,0.00030684,2]
[311018984,1704870686044,-672.47,0.00030684,2]
[311018985,1704870686053,-500.0,0.00030684,2]
[311018986,1704870686063,-500.0,0.00030684,2]
[311018987,1704870686072,-3048.02,0.00030684,2]
[311018988,1704870686081,-500.0,0.00030684,2]
[311018989,1704870686090,-3117.17,0.00030684,2]
[311018990,1704870686100,-503.32307411,0.00030684,2]
[311018991,1704870686109,-1402.8,0.00030684,2]
[311018992,1704870686118,-1813.54,0.00030684,2]
[311018993,1704870686128,-769.24,0.00030684,2]
[311018994,1704870686137,-5710.88,0.00030684,2]
[311018995,1704870686146,-784.06,0.00030684,2]
[311018996,1704870686156,-500.0,0.00030684,2]
[311018997,1704870686165,-1432.69,0.00030684,2]
[311018998,1704870686174,-500.0,0.00030684,2]
[311018999,1704870686183,-603.6,0.00030684,2]
[311019000,1704870686193,-645.22,0.00030684,2]
[311019001,1704870686202,-161.17001529,0.00030684,2]
[311019002,1704870686212,-500.0,0.00030684,2]
[311019003,1704870686221,-3375.63,0.00030684,2]
[311019004,1704870686230,-500.0,0.00030684,2]
[311019005,1704870686240,-500.0,0.00030684,2]
[311019006,1704870686249,-730.79,0.00030684,2]
[311019007,1704870686259,-2491.7,0.00030684,2]
[311019008,1704870686268,-1149.22,0.00030684,2]
[311019009,1704870686278,-3851.17,0.00030684,2]
[311019010,1704870686287,-499.33,0.00030684,2]
[311019011,1704870686299,-500.0,0.00030684,2]
[311019012,1704870686309,-500.0,0.00030684,2]
[311019013,1704870686319,-1773.31,0.00030684,2]
[311019014,1704870686329,-500.0,0.00030684,2]
[311019015,1704870686338,-500.0,0.00030684,2]
[311019016,1704870686347,-1945.04,0.00030684,2]
[311019017,1704870686357,-500.0,0.00030684,2]
[311019018,1704870686367,-500.0,0.00030684,2]
[311019019,1704870686376,-941.29,0.00030684,2]
[311019020,1704870686385,-500.0,0.00030684,2]
[311019021,1704870686395,-500.0,0.00030684,2]
[311019022,1704870686404,-2369.24,0.00030684,2]
[311019023,1704870686414,-13222.53,0.00030684,2]
[311019024,1704870686423,-3940.72,0.00030684,2]
[311019025,1704870686432,-500.0,0.00030684,2]
[311019026,1704870686441,-1547.67,0.00030684,2]
[311019027,1704870686451,-500.0,0.00030684,2]
[311019028,1704870686460,-500.0,0.00030684,2]
[311019029,1704870686470,-500.0,0.00030684,2]
[311019030,1704870686479,-500.0,0.00030684,2]
[311019031,1704870686489,-2569.76,0.00030684,2]
[311019032,1704870686498,-600.98,0.00030684,2]
[311019033,1704870686508,-3191.37,0.00030684,2]
[311019034,1704870686517,-500.0,0.00030684,2]
[311019035,1704870686527,-880.07,0.00030684,2]
[311019036,1704870686536,-500.0,0.00030684,2]
[311019037,1704870686546,-976.63,0.00030684,2]
[311019038,1704870686555,-1781.62,0.00030684,2]
[311019039,1704870686564,-2231.46,0.00030684,2]
[311019040,1704870686574,-500.0,0.00030684,2]
[311019041,1704870686583,-500.0,0.00030684,2]
[311019042,1704870686593,-699.13,0.00030684,2]
[311019043,1704870686602,-1000.0,0.00030684,2]
[311019044,1704870686611,-500.0,0.00030684,2]
[311019045,1704870686621,-3212.67,0.00030684,2]
[311019046,1704870686630,-500.0,0.00030684,2]
[311019047,1704870686639,-500.0,0.00030684,2]
[311019048,1704870686649,-548.75,0.00030684,2]
[311019049,1704870686659,-500.0,0.00030684,2]
[311019050,1704870686668,-679.83,0.00030684,2]
[311019051,1704870686677,-5456.23,0.00030684,2]
[311019052,1704870686687,-4540.83,0.00030684,2]
[311019053,1704870686696,-500.0,0.00030684,2]
[311019054,1704870686706,-500.0,0.00030684,2]
[311019055,1704870686715,-1711.05,0.00030684,2]
[311019056,1704870686725,-599.33,0.00030684,2]
[311019057,1704870686734,-508.46,0.00030684,2]
[311019058,1704870686743,-500.0,0.00030684,2]
[311019059,1704870687017,-500.0,0.00030684,2]
[311019060,1704870687029,-500.0,0.00030684,2]
[311019061,1704870687038,-541.66,0.00030684,2]
[311019062,1704870687048,-500.0,0.00030684,2]
[311019063,1704870687057,-500.0,0.00030684,2]
[311019064,1704870687066,-3077.49,0.00030684,2]
[311019065,1704870687075,-741.19,0.00030684,2]
[311019066,1704870687084,-738.51,0.00030684,2]
[311019067,1704870687093,-500.0,0.00030684,2]
[311019068,1704870687102,-297.43226008,0.00030684,2]
[311019069,1704870687111,-1510.29,0.00030684,2]
[311019070,1704870687120,-1203.02,0.00030684,2]
[311019071,1704870687129,-20608.11,0.00030684,2]
[311019072,1704870687138,-808.77,0.00030684,2]
[311019073,1704870687148,-500.0,0.00030684,2]
[311019074,1704870687157,-4390.05,0.00030684,2]
[311019075,1704870687166,-3200.67,0.00030684,2]
[311019076,1704870687177,-1849.41,0.00030684,2]
[311019077,1704870687186,-500.0,0.00030684,2]
[311019078,1704870687196,-500.0,0.00030684,2]
[311019079,1704870687205,-500.0,0.00030684,2]
[311019080,1704870687214,-500.0,0.00030684,2]
[311019081,1704870687225,-500.0,0.00030684,2]
[311019082,1704870687234,-1752.01,0.00030684,2]
[311019083,1704870687243,-500.0,0.00030684,2]
[311019084,1704870687253,-500.0,0.00030684,2]
[311019085,1704870687263,-500.0,0.00030684,2]
[311019086,1704870687272,-615.88172052,0.00030684,2]
[311019087,1704870687281,-500.0,0.00030684,2]
[311019088,1704870687290,-749.91,0.00030684,2]
[311019089,1704870687301,-1269.96,0.00030684,2]
[311019090,1704870687310,-1111.52,0.00030684,2]
[311019091,1704870687319,-5610.45,0.00030684,2]
[311019092,1704870687329,-500.0,0.00030684,2]
[311019093,1704870687340,-6489.8,0.00030684,2]
[311019094,1704870687353,-668.09,0.00030684,2]
[311019095,1704870687362,-500.0,0.00030684,2]
[311019096,1704870687371,-500.0,0.00030684,2]
[311019097,1704870687380,-1521.59,0.00030684,2]
[311019098,1704870687390,-500.0,0.00030684,2]
[311019099,1704870687400,-500.0,0.00030684,2]
[311019100,1704870687409,-451.99916395,0.00030684,2]
[311019101,1704870687419,-1488.29,0.00030684,2]
[311019102,1704870687429,-500.0,0.00030684,2]
[311019103,1704870687439,-500.0,0.00030684,2]
[311019104,1704870687448,-1791.26,0.00030684,2]
[311019105,1704870687457,-13764.43,0.00030684,2]
[311019106,1704870687467,-1272.61,0.00030684,2]
[311019107,1704870687476,-3827.43,0.00030684,2]
[311019108,1704870687486,-22537.9,0.00030684,2]
[311019109,1704870687496,-1494.82,0.00030684,2]
[311019110,1704870687505,-500.0,0.00030684,2]
[311019111,1704870687515,-321.11207264,0.00030684,2]
[311019112,1704870687528,-513.94,0.00030684,2]
[311019113,1704870687537,-500.0,0.00030684,2]
[311019114,1704870687547,-2693.87,0.00030684,2]
[311019115,1704870687557,-1437.34,0.00030684,2]
[311019116,1704870687566,-500.0,0.00030684,2]
[311019117,1704870687575,-1048.75,0.00030684,2]
[311019118,1704870687585,-500.0,0.00030684,2]
[311019119,1704870687595,-737.91,0.00030684,2]
[311019120,1704870687605,-500.0,0.00030684,2]
[311019121,1704870687614,-1358.29,0.00030684,2]
[311019122,1704870687623,-2264.84,0.00030684,2]
[311019123,1704870687632,-557.49,0.00030684,2]
[311019124,1704870687642,-500.0,0.00030684,2]
[311019125,1704870687651,-550.94,0.00030684,2]
[311019126,1704870687660,-500.0,0.00030684,2]
[311019127,1704870687670,-500.0,0.00030684,2]
[311019128,1704870687679,-500.0,0.00030684,2]
[311019129,1704870687688,-500.0,0.00030684,2]
[311019130,1704870687697,-549.52,0.00030684,2]
[311019131,1704870687707,-574.85,0.00030684,2]
[311019132,1704870687716,-1263.59,0.00030684,2]
[311019133,1704870687725,-2722.93,0.00030684,2]
[311019134,1704870687735,-500.53289501,0.00030684,2]
[311019135,1704870687745,-1000.97,0.00030684,2]
[311019136,1704870687755,-2281.85,0.00030684,2]
[311019137,1704870687765,-500.0,0.00030684,2]
[311019138,1704870687775,-392.28107798,0.00030684,2]
[311019139,1704870687784,-3524.5,0.00030684,2]
[311019140,1704870687794,-500.0,0.00030684,2]
[311019141,1704870687804,-3037.24,0.00030684,2]
[311019142,1704870687813,-500.0,0.00030684,2]
[311019143,1704870687822,-565.29,0.00030684,2]
[311019144,1704870687832,-4821.43,0.00030684,2]
[311019145,1704870687842,-1141.32,0.00030684,2]
[311019146,1704870687852,-6729.03,0.00030684,2]
[311019147,1704870687861,-815.87,0.00030684,2]
[311019148,1704870687871,-2286.05,0.00030684,2]
[311019149,1704870687880,-500.0,0.00030684,2]
[311019150,1704870687890,-2022.15,0.00030684,2]
[311019151,1704870687900,-2729.49,0.00030684,2]
[311019152,1704870687910,-1066.24,0.00030684,2]
[311019153,1704870687920,-2869.03,0.00030684,2]
[311019154,1704870687930,-6845.94,0.00030684,2]
[311019155,1704870687939,-1910.29,0.00030684,2]
[311019156,1704870687949,-500.0,0.00030684,2]
[311019157,1704870687959,-500.0,0.00030684,2]
[311019158,1704870687969,-500.0,0.00030684,2]
[311019159,1704870687978,-2539.69,0.00030684,2]
[311019160,1704870687988,-565.35733841,0.00030684,2]
[311019161,1704870687998,-500.0,0.00030684,2]
[311019162,1704870688008,-3765.14,0.00030684,2]
[311019163,1704870688018,-3369.31,0.00030684,2]
[311019164,1704870688027,-500.0,0.00030684,2]
[311019165,1704870688037,-518.25,0.00030684,2]
[311019166,1704870688046,-1006.55,0.00030684,2]
[311019167,1704870688056,-1612.75,0.00030684,2]
[311019168,1704870688066,-3527.66,0.00030684,2]
[311019169,1704870688075,-5328.7,0.00030684,2]
[311019170,1704870688085,-954.27,0.00030684,2]
[311019171,1704870688096,-500.0,0.00030684,2]
[311019172,1704870688106,-596.93,0.00030684,2]
[311019173,1704870688116,-500.0,0.00030684,2]
[311019174,1704870688126,-500.0,0.00030684,2]
[311019175,1704870688136,-1440.91,0.00030684,2]
[311019176,1704870688147,-500.0,0.00030684,2]
[311019177,1704870688157,-500.0,0.00030684,2]
[311019178,1704870688168,-500.0,0.00030684,2]
[311019179,1704870688178,-1057.36,0.00030684,2]
[311019180,1704870688189,-500.0,0.00030684,2]
[311019181,1704870688199,-500.0,0.00030684,2]
[311019182,1704870688209,-1078.62,0.00030684,2]
[311019183,1704870688219,-804.48,0.00030684,10]
[311019184,1704870688229,-500.0,0.00030684,2]
[311019185,1704870688239,-1644.73,0.00030684,2]
[311019186,1704870688248,-1039.41,0.00030684,2]
[311019187,1704870688258,-1202.16,0.00030684,2]
[311019188,1704870688267,-721.93,0.00030684,2]
[311019189,1704870688276,-3439.96,0.00030684,2]
[311019190,1704870688286,-1792.29,0.00030684,2]
[311019191,1704870688295,-3049.45,0.00030684,2]
[311019192,1704870688304,-500.0,0.00030684,2]
[311019193,1704870688313,-500.0,0.00030684,2]
[311019194,1704870688323,-559.7733638,0.00030684,2]
[311019195,1704870688332,-500.0,0.00030684,2]
[311019196,1704870688342,-16328.14,0.00030684,2]
[311019197,1704870688352,-1653.76,0.00030684,2]
[311019198,1704870688361,-3028.22,0.00030684,2]
[311019199,1704870688371,-500.0,0.00030684,2]
[311019200,1704870688380,-500.0,0.00030684,2]
[311019201,1704870688389,-736.86,0.00030684,2]
[311019202,1704870688399,-500.0,0.00030684,2]
[311019203,1704870688408,-500.0,0.00030684,2]
[311019204,1704870688418,-2413.98,0.00030684,2]
[311019205,1704870688427,-500.0,0.00030684,2]
[311019206,1704870688436,-535.15,0.00030684,2]
[311019207,1704870688446,-2477.38,0.00030684,2]
[311019208,1704870688456,-5157.52,0.00030684,2]
[311019209,1704870688465,-666.65,0.00030684,2]
[311019210,1704870688474,-29158.44,0.00030684,2]
[311019211,1704870688484,-500.0,0.00030684,2]
[311019212,1704870688493,-925.22,0.00030684,2]
[311019213,1704870688502,-500.0,0.00030684,2]
[311019214,1704870688512,-500.0,0.00030684,2]
[311019215,1704870688521,-619.09,0.00030684,2]
[311019216,1704870688530,-3894.37,0.00030684,2]
[311019217,1704870688540,-500.0,0.00030684,2]
[311019218,1704870688549,-3394.13,0.00030684,2]
[311019219,1704870688558,-1551.09,0.00030684,2]
[311019220,1704870688567,-500.0,0.00030684,2]
[311019221,1704870688577,-1950.7,0.00030684,2]
[311019222,1704870688587,-500.0,0.00030684,2]
[311019223,1704870688597,-500.0,0.00030684,2]
[311019224,1704870688606,-1445.01,0.00030684,2]
[311019225,1704870688616,-790.24,0.00030684,2]
[311019226,1704870688625,-500.0,0.00030684,2]
[311019227,1704870688634,-672.92,0.00030684,2]
[311019228,1704870688643,-500.0,0.00030684,2]
[311019229,1704870688653,-912.31,0.00030684,2]
[311019230,1704870688661,-2422.79,0.00030684,2]
[311019231,1704870688671,-1098.07,0.00030684,4]
[311019232,1704870688681,-500.0,0.00030684,2]
[311019233,1704870688690,-823.87,0.00030684,2]
[311019234,1704870688699,-500.0,0.00030684,2]
[311019235,1704870688709,-500.0,0.00030684,2]
[311019236,1704870688718,-1008.2,0.00030684,2]
[311019237,1704870688727,-2760.38,0.00030684,2]
[311019238,1704870688745,-8606.21,0.00030684,2]
[311019239,1704870688770,-3725.93,0.00030684,2]
[311019240,1704870688779,-500.0,0.00030684,2]
[311019241,1704870688790,-5309.54,0.00030684,2]
[311019242,1704870688800,-760.68,0.00030684,2]
[311019243,1704870688810,-1524.79,0.00030684,2]
[311019244,1704870688820,-2189.85,0.00030684,2]
[311019245,1704870688831,-500.0,0.00030684,2]
[311019246,1704870688842,-1359.32,0.00030684,2]
[311019247,1704870688853,-985.55,0.00030684,2]
[311019248,1704870688864,-2321.95,0.00030684,2]
[311019249,1704870688875,-1000.0,0.00030684,2]
[311019250,1704870688885,-500.0,0.00030684,2]
[311019251,1704870688895,-500.0,0.00030684,2]
[311019252,1704870688906,-500.0,0.00030684,2]
[311019253,1704870688916,-1884.66,0.00030684,2]